fUSD/lending_fUSD_20240425
["ID","MTS","AMOUNT","RATE_DAILY","PERIOD"]
[323563189,1714086655683,-500.0,0.00011232,2]
[323563190,1714086655698,-500.0,0.00011232,2]
[323563191,1714086655712,-511.82,0.00011232,2]
[323563192,1714086655729,-500.0,0.00011232,2]
[323563193,1714086655744,-500.0,0.00011232,2]
[323563194,1714086655756,-500.0,0.00011232,2]
[323563195,1714086655767,-500.0,0.00011232,2]
[323563196,1714086655781,-500.0,0.00011232,2]
[323563197,1714086655795,-500.0,0.00011232,2]
[323563198,1714086655810,-500.0,0.00011232,2]
[323563199,1714086655821,-500.0,0.00011232,2]
[323563200,1714086655833,-490.37,0.00011232,2]
[323563201,1714086655847,-500.0,0.00011232,2]
[323563202,1714086655861,-500.0,0.00011232,2]
[323563203,1714086655875,-500.0,0.00011232,2]
[323563204,1714086655888,-500.0,0.00011232,2]
[323563205,1714086655900,-500.0,0.00011232,2]
[323563206,1714086655913,-500.0,0.00011232,2]
[323563207,1714086655925,-500.0,0.00011232,2]
[323563208,1714086655939,-500.0,0.00011232,2]
[323563209,1714086655952,-500.0,0.00011232,2]
[323563210,1714086655964,-500.0,0.00011232,2]
[323563211,1714086655976,-500.0,0.00011232,2]
[323563212,1714086655989,-725.84,0.00011232,2]
[323563213,1714086656002,-500.0,0.00011232,2]
[323563214,1714086656015,-500.0,0.00011232,2]
[323563215,1714086656027,-500.0,0.00011232,2]
[323563216,1714086656039,-500.0,0.00011232,2]
[323563217,1714086656052,-500.0,0.00011232,2]
[323563218,1714086656064,-500.0,0.00011232,2]
[323563219,1714086656076,-500.0,0.00011232,2]
[323563220,1714086656090,-500.0,0.00011232,2]
[323563221,1714086656102,-500.0,0.00011232,2]
[323563222,1714086656114,-500.0,0.00011232,2]
[323563223,1714086656126,-500.0,0.00011232,2]
[323563224,1714086656138,-500.0,0.00011232,2]
[323563225,1714086656150,-500.0,0.00011232,2]
[323563226,1714086656163,-500.0,0.00011232,2]
[323563227,1714086656175,-500.0,0.00011232,2]
[323563228,1714086656188,-500.0,0.00011232,2]
[323563229,1714086656199,-500.0,0.00011232,2]
[323563230,1714086656211,-500.0,0.00011232,2]
[323563231,1714086656223,-500.0,0.00011232,2]
[323563232,1714086656240,-500.0,0.00011232,2]
[323563233,1714086656253,-690.92,0.00011232,2]
[323563234,1714086656265,-500.0,0.00011232,2]
[323563235,1714086656277,-500.0,0.00011232,2]
[323563236,1714086656290,-500.0,0.00011232,2]
[323563237,1714086656302,-500.0,0.00011232,2]
[323563238,1714086656315,-500.0,0.00011232,2]
[323563239,1714086656327,-634.52,0.00011232,2]
[323563240,1714086656341,-207.2837543,0.00011232,2]
[323563241,1714086656354,-500.0,0.00011232,2]
[323563242,1714086656366,-500.0,0.00011232,2]
[323563243,1714086656379,-500.0,0.00011232,2]
[323563244,1714086656392,-500.0,0.00011232,2]
[323563245,1714086656404,-521.84350634,0.00011232,2]
[323563246,1714086656420,-783.46,0.00011232,2]
[323563247,1714086656432,-500.0,0.00011232,2]
[323563248,1714086656446,-500.0,0.00011232,2]
[323563249,1714086656457,-500.0,0.00011232,2]
[323563250,1714086656470,-1205.79,0.00011232,2]
[323563251,1714086656482,-500.0,0.00011232,2]
[323563252,1714086656494,-2390.38,0.00011232,2]
[323563253,1714086656506,-639.1,0.00011232,2]
[323563254,1714086656519,-500.0,0.00011232,2]
[323563255,1714086656531,-500.0,0.00011232,2]
[323563256,1714086656544,-1379.1,0.00011232,2]
[323563257,1714086656557,-500.0,0.00011232,2]
[323563258,1714086656570,-500.0,0.00011232,2]
[323563259,1714086656582,-500.0,0.00011232,2]
[323563260,1714086656595,-518.23,0.00011232,2]
[323563261,1714086656607,-500.0,0.00011232,2]
[323563262,1714086656619,-692.86,0.00011232,2]
[323563263,1714086656632,-1301.12,0.00011232,2]
[323563264,1714086656645,-617.93,0.00011232,2]
[323563265,1714086656657,-4364.75,0.00011232,2]
[323563266,1714086656670,-500.0,0.00011232,2]
[323563267,1714086656683,-500.0,0.00011232,2]
[323563268,1714086656696,-500.0,0.00011232,2]
[323563269,1714086656709,-500.0,0.00011232,2]
[323563270,1714086656721,-925.78,0.00011232,2]
[323563271,1714086656734,-500.0,0.00011232,2]
[323563272,1714086656747,-509.5,0.00011232,2]
[323563273,1714086656759,-330.43073656,0.00011232,2]
[323563274,1714086656771,-500.0,0.00011232,2]
[323563275,1714086656784,-4837.0,0.00011232,2]
[323563276,1714086656796,-898.07,0.00011232,2]
[323563277,1714086656809,-696.83,0.00011232,2]
[323563278,1714086656822,-500.0,0.00011232,2]
[323563279,1714086656835,-500.0,0.00011232,2]
[323563280,1714086656847,-500.0,0.00011232,2]
[323563281,1714086656860,-500.0,0.00011232,2]
[323563282,1714086656872,-232.19689177,0.00011232,2]
[323563283,1714086656885,-584.73,0.00011232,2]
[323563284,1714086656898,-669.59,0.00011232,2]
[323563285,1714086656910,-500.0,0.00011232,2]
[323563286,1714086656923,-500.0,0.00011232,2]
[323563287,1714086656935,-500.0,0.00011232,2]
[323563288,1714086656947,-500.0,0.00011232,2]
[323563289,1714086656961,-854.46,0.00011232,2]
[323563290,1714086656973,-500.0,0.00011232,2]
[323563291,1714086656986,-500.0,0.00011232,2]
[323563292,1714086656998,-500.0,0.00011232,2]
[323563293,1714086657011,-500.0,0.00011232,2]
[323563294,1714086657024,-1406.09,0.00011232,2]
[323563295,1714086657036,-500.0,0.00011232,2]
[323563296,1714086657048,-500.0,0.00011232,2]
[323563297,1714086657060,-500.0,0.00011232,2]
[323563298,1714086657077,-500.0,0.00011232,2]
[323563299,1714086657090,-1754.68,0.00011232,2]
[323563300,1714086657103,-1052.46,0.00011232,2]
[323563301,1714086657116,-500.0,0.00011232,2]
[323563302,1714086657128,-500.0,0.00011232,2]
[323563303,1714086657141,-500.0,0.00011232,2]
[323563304,1714086657152,-952.15,0.00011232,2]
[323563305,1714086657165,-500.0,0.00011232,2]
[323563306,1714086657177,-500.0,0.00011232,2]
[323563307,1714086657189,-500.0,0.00011232,2]
[323563308,1714086657202,-828.09,0.00011232,2]
[323563309,1714086657214,-19463.48,0.00011232,2]
[323563310,1714086657226,-549.47,0.00011232,2]
[323563311,1714086657238,-500.0,0.00011232,2]
[323563312,1714086657250,-500.0,0.00011232,2]
[323563313,1714086657262,-550.31,0.00011232,2]
[323563314,1714086657274,-506.72,0.00011232,2]
[323563315,1714086657287,-7117.51,0.00011232,2]
[323563316,1714086657299,-500.0,0.00011232,2]
[323563317,1714086657311,-500.0,0.00011232,2]
[323563318,1714086657324,-1410.55,0.00011232,2]
[323563319,1714086657338,-500.0,0.00011232,2]
[323563320,1714086657350,-3121.23,0.00011232,2]
[323563321,1714086657362,-500.0,0.00011232,2]
[323563322,1714086657375,-500.0,0.00011232,2]
[323563323,1714086657387,-500.0,0.00011232,2]
[323563324,1714086657400,-500.0,0.00011232,2]
[323563325,1714086657412,-500.0,0.00011232,2]
[323563326,1714086657425,-500.0,0.00011232,2]
[323563327,1714086657438,-500.0,0.00011232,2]
[323563328,1714086657451,-1274.95,0.00011232,2]
[323563329,1714086657463,-500.0,0.00011232,2]
[323563330,1714086657475,-1214.41,0.00011232,2]
[323563331,1714086657488,-500.0,0.00011232,2]
[323563332,1714086657501,-500.0,0.00011232,2]
[323563333,1714086657513,-187.4485406,0.00011232,2]
[323563334,1714086657526,-500.0,0.00011232,2]
[323563335,1714086657539,-1735.46,0.00011232,2]
[323563336,1714086657550,-500.0,0.00011232,2]
[323563337,1714086657563,-500.0,0.00011232,2]
[323563338,1714086657575,-1110.79,0.00011232,2]
[323563339,1714086657587,-541.53,0.00011232,2]
[323563340,1714086657599,-500.0,0.00011232,2]
[323563341,1714086657611,-465.95869788,0.00011232,2]
[323563342,1714086657623,-1176.44,0.00011232,2]
[323563343,1714086657637,-500.0,0.00011232,2]
[323563344,1714086657649,-500.0,0.00011232,2]
[323563345,1714086657662,-500.0,0.00011232,2]
[323563346,1714086657674,-10166.99,0.00011232,2]
[323563347,1714086657688,-500.0,0.00011232,2]
[323563348,1714086657701,-500.0,0.00011232,2]
[323563349,1714086657714,-500.0,0.00011232,2]
[323563350,1714086657724,-500.0,0.00011232,2]
[323563351,1714086658073,-500.0,0.00011232,2]
[323563352,1714086658094,-500.0,0.00011232,2]
[323563353,1714086658104,-949.91,0.00011232,2]
[323563354,1714086658113,-500.0,0.00011232,2]
[323563355,1714086658121,-559.5264426,0.00011232,2]
[323563356,1714086658130,-500.0,0.00011232,2]
[323563357,1714086658139,-500.0,0.00011232,2]
[323563358,1714086658149,-1196.53,0.00011232,2]
[323563359,1714086658158,-500.0,0.00011232,2]
[323563360,1714086658166,-500.0,0.00011232,2]
[323563361,1714086658176,-500.0,0.00011232,2]
[323563362,1714086658185,-500.0,0.00011232,2]
[323563363,1714086658196,-500.0,0.00011232,2]
[323563364,1714086658205,-500.0,0.00011232,2]
[323563365,1714086658214,-500.0,0.00011232,2]
[323563366,1714086658223,-1821.52,0.00011232,2]
[323563367,1714086658232,-500.0,0.00011232,2]
[323563368,1714086658241,-500.0,0.00011232,2]
[323563369,1714086658250,-546.31547248,0.00011232,2]
[323563370,1714086658260,-2056.26,0.00011232,2]
[323563371,1714086658268,-500.0,0.00011232,2]
[323563372,1714086658277,-667.81,0.00011232,2]
[323563373,1714086658287,-500.0,0.00011232,2]
[323563374,1714086658296,-500.0,0.00011232,2]
[323563375,1714086658306,-1192.06,0.00011232,2]
[323563376,1714086658315,-1590.61,0.00011232,2]
[323563377,1714086658324,-500.0,0.00011232,2]
[323563378,1714086658335,-500.0,0.00011232,2]
[323563379,1714086658344,-500.0,0.00011232,2]
[323563380,1714086658354,-500.0,0.00011232,2]
[323563381,1714086658365,-500.0,0.00011232,2]
[323563382,1714086658375,-500.0,0.00011232,2]
[323563383,1714086658384,-615.89,0.00011232,2]
[323563384,1714086658394,-500.0,0.00011232,2]
[323563385,1714086658405,-500.0,0.00011232,2]
[323563386,1714086658416,-500.0,0.00011232,2]
[323563387,1714086658426,-588.53,0.00011232,2]
[323563388,1714086658437,-2103.99,0.00011232,2]
[323563389,1714086658446,-1410.42,0.00011232,2]
[323563390,1714086658456,-500.0,0.00011232,2]
[323563391,1714086658466,-973.91,0.00011232,2]
[323563392,1714086658475,-1930.64,0.00011232,2]
[323563393,1714086658485,-500.0,0.00011232,2]
[323563394,1714086658494,-500.0,0.00011232,2]
[323563395,1714086658504,-500.0,0.00011232,2]
[323563396,1714086658513,-500.0,0.00011232,2]
[323563397,1714086658523,-500.0,0.00011232,2]
[323563398,1714086658532,-1021.72,0.00011232,2]
[323563399,1714086658542,-500.0,0.00011232,2]
[323563400,1714086658551,-1131.96,0.00011232,2]
[323563401,1714086658560,-500.0,0.00011232,2]
[323563402,1714086658570,-500.0,0.00011232,2]
[323563403,1714086658579,-500.0,0.00011232,2]
[323563404,1714086658589,-783.32,0.00011232,2]
[323563405,1714086658598,-564.52,0.00011232,2]
[323563406,1714086658607,-3884.89,0.00011232,2]
[323563407,1714086658616,-500.0,0.00011232,2]
[323563408,1714086658625,-500.0,0.00011232,2]
[323563409,1714086658635,-500.0,0.00011232,2]
[323563410,1714086658644,-7194.8,0.00011232,2]
[323563411,1714086658653,-526.65,0.00011232,2]
[323563412,1714086658662,-563.47,0.00011232,2]
[323563413,1714086658672,-500.0,0.00011232,2]
[323563414,1714086658681,-383.42892835,0.00011232,2]
[323563415,1714086658691,-610.04,0.00011232,2]
[323563416,1714086658700,-2059.21,0.00011232,2]
[323563417,1714086658709,-500.0,0.00011232,2]
[323563418,1714086658718,-1269.27,0.00011232,2]
[323563419,1714086658728,-1345.63,0.00011232,2]
[323563420,1714086658737,-513.17,0.00011232,2]
[323563421,1714086658746,-18211.49,0.00011232,2]
[323563422,1714086658755,-757.74,0.00011232,2]
[323563423,1714086658765,-500.0,0.00011232,2]
[323563424,1714086658775,-500.0,0.00011232,2]
[323563425,1714086658784,-500.0,0.00011232,2]
[323563426,1714086658794,-500.0,0.00011232,2]
[323563427,1714086658803,-3420.23,0.00011232,2]
[323563428,1714086658812,-500.0,0.00011232,2]
[323563429,1714086658821,-500.0,0.00011232,2]
[323563430,1714086658830,-500.0,0.00011232,2]
[323563431,1714086658839,-500.0,0.00011232,2]
[323563432,1714086658848,-602.67,0.00011232,2]
[323563433,1714086658857,-500.0,0.00011232,2]
[323563434,1714086658866,-500.0,0.00011232,2]
[323563435,1714086658876,-724.35,0.00011232,2]
[323563436,1714086658885,-532.51,0.00011232,2]
[323563437,1714086658894,-500.0,0.00011232,2]
[323563438,1714086658903,-5027.25,0.00011232,2]
[323563439,1714086658912,-630.85,0.00011232,2]
[323563440,1714086658921,-743.36,0.00011232,2]
[323563441,1714086658930,-500.0,0.00011232,2]
[323563442,1714086658939,-500.0,0.00011232,2]
[323563443,1714086658948,-500.0,0.00011232,2]
[323563444,1714086658958,-569.25,0.00011232,2]
[323563445,1714086658967,-623.84367722,0.00011232,2]
[323563446,1714086658976,-665.38,0.00011232,2]
[323563447,1714086658986,-500.0,0.00011232,2]
[323563448,1714086658996,-616.6,0.00011232,2]
[323563449,1714086659006,-500.0,0.00011232,2]
[323563450,1714086659016,-500.0,0.00011232,2]
[323563451,1714086659026,-503.18073118,0.00011232,2]
[323563452,1714086659036,-500.0,0.00011232,2]
[323563453,1714086659046,-987.05,0.00011232,2]
[323563454,1714086659056,-500.0,0.00011232,2]
[323563455,1714086659066,-500.0,0.00011232,2]
[323563456,1714086659076,-500.0,0.00011232,2]
[323563457,1714086659087,-500.0,0.00011232,2]
[323563458,1714086659097,-500.0,0.00011232,2]
[323563459,1714086659107,-500.0,0.00011232,2]
[323563460,1714086659116,-1008.94,0.00011232,2]
[323563461,1714086659126,-1035.52,0.00011232,2]
[323563462,1714086659135,-3244.37,0.00011232,2]
[323563463,1714086659144,-8997.14,0.00011232,2]
[323563464,1714086659153,-5542.04,0.00011232,2]
[323563465,1714086659163,-500.0,0.00011232,2]
[323563466,1714086659173,-500.0,0.00011232,2]
[323563467,1714086659182,-500.0,0.00011232,2]
[323563468,1714086659193,-500.0,0.00011232,2]
[323563469,1714086659203,-500.0,0.00011232,2]
[323563470,1714086659214,-500.0,0.00011232,2]
[323563471,1714086659224,-595.93,0.00011232,2]
[323563472,1714086659234,-500.0,0.00011232,2]
[323563473,1714086659244,-707.47,0.00011232,2]
[323563474,1714086659253,-500.0,0.00011232,2]
[323563475,1714086659264,-500.0,0.00011232,2]
[323563476,1714086659273,-510.00209836,0.00011232,2]
[323563477,1714086659282,-500.0,0.00011232,2]
[323563478,1714086659291,-558.27,0.00011232,2]
[323563479,1714086659300,-500.0,0.00011232,2]
[323563480,1714086659309,-715.16,0.00011232,2]
[323563481,1714086659318,-610.9,0.00011232,2]
[323563482,1714086659327,-500.0,0.00011232,2]
[323563483,1714086659338,-4275.93,0.00011232,2]
[323563484,1714086659349,-500.0,0.00011232,2]
[323563485,1714086659358,-500.0,0.00011232,2]
[323563486,1714086659367,-500.0,0.00011232,2]
[323563487,1714086659377,-1031.19,0.00011232,2]
[323563488,1714086659386,-761.18,0.00011232,2]
[323563489,1714086659395,-500.0,0.00011232,2]
[323563490,1714086659404,-500.0,0.00011232,2]
[323563491,1714086659414,-512.19,0.00011232,2]
[323563492,1714086659424,-566.42,0.00011232,2]
[323563493,1714086659433,-570.43,0.00011232,2]
[323563494,1714086659443,-887.49,0.00011232,2]
[323563495,1714086659452,-500.0,0.00011232,2]
[323563496,1714086659461,-3675.38,0.00011232,2]
[323563497,1714086659470,-1060.36,0.00011232,2]
[323563498,1714086659479,-500.0,0.00011232,2]
[323563499,1714086659488,-500.0,0.00011232,2]
[323563500,1714086659498,-1399.96,0.00011232,2]
[323563501,1714086659508,-500.0,0.00011232,2]
[323563502,1714086659517,-500.0,0.00011232,2]
[323563503,1714086659526,-500.0,0.00011232,2]
[323563504,1714086659535,-500.0,0.00011232,2]
[323563505,1714086659545,-500.0,0.00011232,2]
[323563506,1714086659554,-654.12,0.00011232,2]
[323563507,1714086659563,-628.06950122,0.00011232,2]
[323563508,1714086659573,-573.94,0.00011232,2]
[323563509,1714086659582,-2140.08,0.00011232,2]
[323563510,1714086659591,-1135.99,0.00011232,2]
[323563511,1714086659600,-500.0,0.00011232,2]
[323563512,1714086659609,-500.0,0.00011232,2]
[323563513,1714086659619,-596.35,0.00011232,2]
[323563514,1714086659628,-500.0,0.00011232,2]
[323563515,1714086659637,-500.0,0.00011232,2]
[323563516,1714086659646,-1776.67,0.00011232,2]
[323563517,1714086659655,-2856.95,0.00011232,2]
[323563518,1714086659665,-514.68,0.00011232,2]
[323563519,1714086659675,-500.0,0.00011232,2]
[323563520,1714086659685,-500.0,0.00011232,2]
[323563521,1714086659694,-500.0,0.00011232,2]
[323563522,1714086659704,-1267.49,0.00011232,2]
[323563523,1714086659713,-500.0,0.00011232,2]
[323563524,1714086659722,-1931.13,0.00011232,2]
[323563525,1714086659732,-500.0,0.00011232,2]
[323563526,1714086659742,-500.0,0.00011232,2]
[323563527,1714086659751,-500.0,0.00011232,2]
[323563528,1714086659760,-500.0,0.00011232,2]
[323563529,1714086659770,-501.84,0.00011232,2]
[323563530,1714086659779,-500.0,0.00011232,2]
[323563531,1714086659789,-564.14,0.00011232,2]
[323563532,1714086659799,-675.28,0.00011232,2]
[323563533,1714086659808,-1975.09,0.00011232,2]
[323563534,1714086659819,-500.0,0.00011232,2]
[323563535,1714086659830,-500.0,0.00011232,2]
[323563536,1714086659840,-500.0,0.00011232,2]
[323563537,1714086659851,-500.0,0.00011232,2]
[323563538,1714086659860,-1089.37,0.00011232,2]
[323563539,1714086659870,-1147.43,0.00011232,2]
[323563540,1714086659879,-500.0,0.00011232,2]
[323563541,1714086659888,-500.0,0.00011232,2]
[323563542,1714086659898,-590.93,0.00011232,2]
[323563543,1714086659907,-500.0,0.00011232,2]
[323563544,1714086659919,-500.0,0.00011232,2]
[323563545,1714086659931,-500.0,0.00011232,2]
[323563546,1714086659942,-500.0,0.00011232,2]
[323563547,1714086659951,-500.0,0.00011232,2]
[323563548,1714086659960,-500.0,0.00011232,2]
[323563549,1714086659969,-500.0,0.00011232,2]
[323563550,1714086659979,-500.0,0.00011232,2]
[323563551,1714086659988,-1310.73,0.00011232,2]
[323563552,1714086659997,-2083.83,0.00011232,2]
[323563553,1714086660006,-1461.77,0.00011232,2]
[323563554,1714086660016,-500.0,0.00011232,2]
[323563555,1714086660026,-1421.29,0.00011232,2]
[323563556,1714086660036,-1233.67,0.00011232,2]
[323563557,1714086660045,-500.0,0.00011232,2]
[323563558,1714086660054,-533.48,0.00011232,2]
[323563559,1714086660064,-500.0,0.00011232,2]
[323563560,1714086660083,-500.0,0.00011232,2]
[323563561,1714086660092,-705.44,0.00011232,2]
[323563562,1714086660102,-1415.33,0.00011232,2]
[323563563,1714086660112,-500.0,0.00011232,2]
[323563564,1714086660121,-1314.92,0.00011232,2]
[323563565,1714086660131,-1336.56,0.00011232,2]
[323563566,1714086660140,-500.0,0.00011232,2]
[323563567,1714086660149,-1142.42,0.00011232,2]
[323563568,1714086660159,-706.43,0.00011232,2]
[323563569,1714086660169,-500.0,0.00011232,2]
[323563570,1714086660179,-500.0,0.00011232,2]
[323563571,1714086660189,-1297.24,0.00011232,2]
[323563572,1714086660199,-500.0,0.00011232,2]
[323563573,1714086660207,-858.61,0.00011232,2]
[323563574,1714086660216,-500.0,0.00011232,2]
[323563575,1714086660226,-500.0,0.00011232,2]
[323563576,1714086660235,-539.32,0.00011232,2]
[323563577,1714086660245,-650.78,0.00011232,2]
[323563578,1714086660254,-500.0,0.00011232,2]
[323563579,1714086660264,-500.0,0.00011232,2]
[323563580,1714086660273,-3495.13,0.00011232,2]
[323563581,1714086660283,-500.0,0.00011232,2]
[323563582,1714086660292,-504.5,0.00011232,2]
[323563583,1714086660302,-500.0,0.00011232,2]
[323563584,1714086660311,-1623.95,0.00011232,2]
[323563585,1714086660320,-500.0,0.00011232,2]
[323563586,1714086660329,-500.0,0.00011232,2]
[323563587,1714086660345,-7029.74,0.00011232,2]
[323563588,1714086660357,-500.0,0.00011232,2]
[323563589,1714086660367,-500.0,0.00011232,2]
[323563590,1714086660377,-1325.31,0.00011232,2]
[323563591,1714086660387,-500.0,0.00011232,2]
[323563592,1714086660397,-500.0,0.00011232,2]
[323563593,1714086660406,-806.86,0.00011232,2]
[323563594,1714086660417,-500.0,0.00011232,2]
[323563595,1714086660426,-588.04226593,0.00011232,2]
[323563596,1714086660436,-1319.03,0.00011232,2]
[323563597,1714086660447,-500.0,0.00011232,2]
[323563598,1714086660456,-500.0,0.00011232,2]
[323563599,1714086660465,-540.68,0.00011232,2]
[323563600,1714086660475,-500.0,0.00011232,2]
[323563601,1714086660485,-500.0,0.00011232,2]
[323563602,1714086660495,-150.00799354,0.00011268,2]
[323563603,1714086660505,-161.33,0.00011277,2]
[323563604,1714086660514,-500.0,0.00011328,2]
[323563605,1714086660524,-500.0,0.00011328,2]
[323563606,1714086660533,-500.0,0.00011328,2]
[323563607,1714086660542,-500.0,0.00011328,2]
[323563608,1714086660552,-500.0,0.00011328,2]
[323563609,1714086660561,-500.0,0.00011328,2]
[323563610,1714086660571,-3074.6922066,0.00011342,2]
[323563611,1714086660581,-10000.0,0.00011379,2]
[323563612,1714086660591,-414.0,0.0001148,2]
[323563613,1714086660601,-500.0,0.00011506,2]
[323563614,1714086660611,-500.0,0.00011506,2]
[323563615,1714086660621,-913.21,0.00011506,2]
[323563616,1714086660630,-500.0,0.00011506,2]
[323563617,1714086660639,-500.0,0.00011506,2]
[323563618,1714086660649,-500.0,0.00011506,2]
[323563619,1714086660659,-500.0,0.00011506,2]
[323563620,1714086660668,-500.0,0.00011506,2]
[323563621,1714086660677,-796.35,0.00011506,2]
[323563622,1714086660686,-500.0,0.00011506,2]
[323563623,1714086660697,-500.0,0.00011506,2]
[323563624,1714086660706,-500.0,0.00011506,2]
[323563625,1714086660716,-809.18,0.00011506,2]
[323563626,1714086660725,-500.0,0.00011506,2]
[323563627,1714086660734,-500.0,0.00011506,2]
[323563628,1714086660743,-500.0,0.00011506,2]
[323563629,1714086660752,-500.0,0.00011506,2]
[323563630,1714086660762,-958.19,0.00011506,2]
[323563631,1714086660771,-500.0,0.00011506,2]
[323563632,1714086660781,-500.0,0.00011506,2]
[323563633,1714086660790,-528.21,0.00011506,2]
[323563634,1714086660801,-500.0,0.00011506,2]
[323563635,1714086660811,-537.2,0.00011506,2]
[323563636,1714086660821,-500.0,0.00011506,2]
[323563637,1714086660830,-500.0,0.00011506,2]
[323563638,1714086660840,-500.0,0.00011506,2]
[323563639,1714086660849,-500.0,0.00011506,2]
[323563640,1714086660860,-500.0,0.00011506,2]
[323563641,1714086660869,-500.0,0.00011506,2]
[323563642,1714086660878,-500.0,0.00011506,2]
[323563643,1714086660887,-500.0,0.00011506,2]
[323563644,1714086660898,-1026.32,0.00011506,2]
[323563645,1714086660907,-500.0,0.00011506,2]
[323563646,1714086660917,-500.0,0.00011506,2]
[323563647,1714086660927,-748.34,0.00011506,2]
[323563648,1714086660937,-500.0,0.00011506,2]
[323563649,1714086660948,-500.0,0.00011506,2]
[323563650,1714086660959,-500.0,0.00011506,2]
[323563651,1714086660970,-500.0,0.00011506,2]
[323563652,1714086660979,-500.0,0.00011506,2]
[323563653,1714086660988,-500.0,0.00011506,2]
[323563654,1714086660997,-500.0,0.00011506,2]
[323563655,1714086661007,-500.0,0.00011506,2]
[323563656,1714086661016,-500.0,0.00011506,2]
[323563657,1714086661025,-500.0,0.00011506,2]
[323563658,1714086661035,-500.0,0.00011506,2]
[323563659,1714086661044,-500.0,0.00011506,2]
[323563660,1714086661054,-500.0,0.00011506,2]
[323563661,1714086661063,-500.0,0.00011506,2]
[323563662,1714086661073,-500.0,0.00011506,2]
[323563663,1714086661082,-528.45,0.00011506,2]
[323563664,1714086661092,-500.0,0.00011506,2]
[323563665,1714086661101,-500.0,0.00011506,2]
[323563666,1714086661110,-500.0,0.00011506,2]
[323563667,1714086661119,-527.52,0.00011506,2]
[323563668,1714086661129,-500.0,0.00011506,2]
[323563669,1714086661138,-500.0,0.00011506,2]
[323563670,1714086661147,-500.0,0.00011506,2]
[323563671,1714086661156,-500.0,0.00011506,2]
[323563672,1714086661166,-500.0,0.00011506,2]
[323563673,1714086661175,-1265.36,0.00011506,2]
[323563674,1714086661185,-500.0,0.00011506,2]
[323563675,1714086661195,-500.0,0.00011506,2]
[323563676,1714086661205,-500.0,0.00011506,2]
[323563677,1714086661215,-500.0,0.00011506,2]
[323563678,1714086661225,-500.0,0.00011506,2]
[323563679,1714086661234,-500.0,0.00011506,2]
[323563680,1714086661244,-500.0,0.00011506,2]
[323563681,1714086661443,-500.0,0.00011506,2]
[323563682,1714086661491,-500.0,0.00011506,2]
[323563683,1714086661502,-500.0,0.00011506,2]
[323563684,1714086661512,-558.24,0.00011506,2]
[323563685,1714086661522,-500.0,0.00011506,2]
[323563686,1714086661532,-500.0,0.00011506,2]
[323563687,1714086661542,-500.0,0.00011506,2]
[323563688,1714086661551,-500.0,0.00011506,2]